bitfinex-derivatives/quotes_SOLF0:USTF0_20250514
["timestamp","ask_amount","ask_price","bid_price","bid_amount"]
[1747220487460,3.6495,179.99,179.88,58.38]
[1747220487657,62.0295,179.99,179.88,58.38]
[1747220488656,3.6495,179.99,179.88,58.38]
[1747220488956,58.38,179.98,179.88,58.38]
[1747220489256,3.6495,179.99,179.88,58.38]
[1747220489456,58.38,179.98,179.88,58.38]
[1747220493060,3.6495,179.99,179.88,58.38]
[1747220493254,62.0095,179.99,179.88,60.2475]
[1747220494659,3.6495,179.99,179.88,60.2475]
[1747220494862,62.0095,179.99,179.88,60.2475]
[1747220496658,1.7574,179.99,179.88,64.63770289]
[1747220499761,58.34,180.01,179.88,64.63770289]
[1747220501365,1.8625,180.02,179.88,64.63770289]
[1747220501765,60.2025,180.02,179.88,64.63770289]
[1747220508866,60.2025,180.02,179.88,6.25770289]
[1747220509069,60.2025,180.02,179.89,58.32]
[1747220511373,4.39020289,180.0,179.89,58.3]
[1747220514073,60.2025,180.02,179.89,58.3]
[1747220514372,60.2025,180.02,179.89,62.69020289]
[1747220515174,58.3,180.01,179.89,62.69020289]
[1747220515373,1.8625,180.02,179.89,62.69020289]
[1747220515573,60.1625,180.02,179.89,62.69020289]
[1747220520676,1.8625,180.02,179.89,62.69020289]
[1747220520977,1.9095,180.05,179.92,4.39020289]
[1747220521170,60.1079,180.08,179.93,116.6]
[1747220521367,60.2041,180.07,179.95,4.39020289]
[1747220525174,60.2041,180.07,179.94,1.9189]
[1747220525581,6.19390289,180.06,179.94,1.9189]
[1747220526076,1.8037,180.06,179.94,1.9189]
[1747220527472,60.1837,180.06,179.94,1.9189]
[1747220530178,60.1837,180.06,179.95,58.28]
[1747220531274,60.1837,180.06,179.94,1.9189]
[1747220531577,4.39020289,180.05,179.94,1.9189]
[1747220532581,64.57390289,180.06,179.94,1.9189]
[1747220532879,1.8037,180.06,179.94,1.9189]
[1747220533080,1.8037,180.06,179.94,6.30910289]
[1747220535280,1.8037,180.06,179.94,1.9189]
[1747220535479,4.39020289,180.05,179.94,1.9189]
[1747220538886,4.39020289,180.05,179.93,596.96]
[1747220539078,4.39020289,180.02,179.93,538.46]
[1747220539382,60.319,180.01,179.93,538.46]
[1747220543882,60.319,180.01,179.93,58.3]
[1747220544284,1.7671,180.0,179.93,58.3]
[1747220546086,1.8079,180.08,179.95,4.39020289]
[1747220546283,3.6386,180.08,179.96,65.3714]
[1747220549186,1.8307,180.08,179.96,65.3714]
[1747220557694,1.8307,180.08,179.96,1.8314]
[1747220557995,64.7307,180.08,179.97,62.9]
[1747220558293,64.7307,180.08,179.98,63.28]
[1747220562694,0.96684124,180.17,179.98,67.67020289]
[1747220563003,4.39020289,180.16,180.02,4.39020289]
[1747220563200,66.1327,180.15,180.03,125.8]
[1747220566010,66.1327,180.15,180.03,127.6216]
[1747220566398,3.6127,180.15,180.03,127.6216]
[1747220566802,162.78574556,180.28,180.09,4.36763738]
[1747220567004,162.78574556,180.28,180.18,4.36428373]
[1747220567204,162.78574556,180.28,180.19,129.1173]
[1747220567404,162.78574556,180.28,180.2,63.26]
[1747220570411,64.12,180.31,180.2,63.26]
[1747220575912,4.36428373,180.29,180.2,63.26]
[1747220576112,68.02428373,180.29,180.19,1.7373]
[1747220579815,68.02428373,180.29,180.18,63.66]
[1747220580016,4.36428373,180.26,180.18,63.66]
[1747220580319,65.2512,180.25,180.18,63.66]
[1747220582014,67.1582,180.25,180.18,63.66]
[1747220589619,1.7912,180.25,180.18,63.66]
[1747220589822,63.66,180.29,180.18,63.66]
[1747220590022,65.4785,180.29,180.18,129.16]
[1747220590221,65.4785,180.29,180.19,1.8647]
[1747220593229,130.7785,180.29,180.19,1.8647]
[1747220593432,4.36428373,180.28,180.19,1.8647]
[1747220593726,4.36428373,180.28,180.18,129.16]
[1747220594223,4.36428373,180.28,180.14,0.1061]
[1747220594529,4.36428373,180.28,180.18,63.64]
[1747220595127,4.36428373,180.27,180.14,0.1061]
[1747220595428,4.36428373,180.27,180.15,128.78]
[1747220596328,4.36428373,180.27,180.14,0.1061]
[1747220596627,4.36428373,180.27,180.15,128.66]
[1747220600130,364.0,180.44,180.25,4.36428373]
[1747220600327,6.15628373,180.43,180.28,4.36428373]
[1747220600528,6.15628373,180.43,180.29,63.64]
[1747220600831,64.64,180.42,180.29,63.64]
[1747220601129,64.64,180.41,180.29,63.64]
[1747220601429,64.62,180.4,180.29,63.64]
[1747220603333,1.7367,180.42,180.29,63.64]
[1747220603627,65.432,180.43,180.29,63.64]
[1747220603930,129.972,180.43,180.29,63.64]
[1747220604734,129.972,180.43,180.31,4.36428373]
[1747220604931,129.972,180.43,180.32,64.52]
[1747220606333,63.64,180.43,180.32,64.52]
[1747220606530,127.96,180.43,180.32,64.52]
[1747220607637,63.64,180.43,180.32,64.52]
[1747220607831,64.38,180.42,180.32,64.52]
[1747220608141,64.38,180.42,180.33,64.3]
[1747220608936,1.7851,180.44,180.33,64.3]
[1747220609237,64.28,180.43,180.33,64.3]
[1747220609737,64.2,180.43,180.33,64.3]
[1747220610436,1.7851,180.44,180.33,64.3]
[1747220610637,1.7851,180.44,180.31,4.36428373]
[1747220610941,1.7851,180.44,180.32,128.42]
[1747220611432,64.08,180.48,180.34,4.36428373]
[1747220611638,1.9093,180.49,180.37,4.36428373]
[1747220611840,66.3293,180.49,180.38,128.7]
[1747220612240,64.28,180.51,180.38,128.7]
[1747220612439,128.66,180.51,180.38,128.7]
[1747220612739,64.38,180.51,180.37,4.36428373]
[1747220612934,4.36428373,180.52,180.37,4.36428373]
[1747220613240,64.28,180.51,180.38,128.56]
[1747220613440,65.26797306,180.51,180.38,128.56]
[1747220613739,64.28,180.51,180.38,128.56]
[1747220614538,64.3,180.52,180.38,128.56]
[1747220615842,4.36428373,180.5,180.35,3.662]
[1747220616036,4.36428373,180.5,180.39,64.26]
[1747220616236,0.98798802,180.49,180.39,64.26]
[1747220619940,68.62428373,180.5,180.39,64.26]
[1747220620140,0.98807314,180.49,180.39,64.26]
[1747220621742,4.36428373,180.47,180.37,64.26]
[1747220621943,63.98,180.46,180.37,64.26]
[1747220622244,65.8658,180.46,180.37,64.26]
[1747220622445,1.8501,180.45,180.37,64.26]
[1747220626645,65.4701,180.45,180.37,64.26]
[1747220627338,1.8501,180.45,180.37,64.26]
[1747220627544,1.8501,180.45,180.35,3.6736]
[1747220627842,1.8501,180.45,180.36,127.78]
[1747220630247,63.54,180.46,180.36,127.78]
[1747220641850,67.90428373,180.46,180.37,62.86]
[1747220642151,1.8187,180.45,180.37,62.86]
[1747220643053,63.54,180.46,180.37,62.86]
[1747220644054,4.36428373,180.49,180.37,62.86]
[1747220644350,62.54,180.48,180.37,62.86]
[1747220644551,62.54,180.48,180.36,6.23968373]
[1747220644754,62.54,180.48,180.38,62.86]
[1747220651554,62.14,180.48,180.38,62.86]
[1747220651959,62.14,180.48,180.39,62.86]
[1747220652460,4.36428373,180.46,180.36,62.86]
[1747220652655,63.96,180.45,180.36,62.86]
[1747220652863,126.82,180.45,180.36,62.86]
[1747220653158,1.7344,180.44,180.34,542.14]
[1747220653359,0.98831882,180.43,180.34,542.14]
[1747220653657,5.35260255,180.43,180.34,542.14]
[1747220653960,62.08,180.42,180.34,542.14]
[1747220656965,61.88,180.41,180.34,542.14]
[1747220657765,61.88,180.41,180.34,62.86]
[1747220661166,6.24008373,180.43,180.34,62.86]
[1747220661466,62.56837603,180.42,180.34,62.86]
[1747220661669,61.58,180.42,180.34,62.86]
[1747220663366,61.58,180.42,180.3,119.87604254]
[1747220663566,4.36428373,180.4,180.3,119.87604254]
[1747220664067,61.66,180.39,180.3,119.87604254]
[1747220664269,4.36428373,180.4,180.3,119.87604254]
[1747220664568,61.66,180.39,180.29,64.7446]
[1747220665566,61.6,180.39,180.29,64.7446]
[1747220669168,4.36428373,180.45,180.29,64.7446]
[1747220669369,61.36,180.43,180.29,64.7446]
[1747220669665,4.36428373,180.45,180.29,64.7446]
[1747220669864,61.34,180.42,180.29,64.7446]
[1747220670385,65.70428373,180.42,180.29,64.7446]
[1747220671272,62.2484342,180.41,180.29,64.7446]
[1747220671470,61.26,180.41,180.29,64.7446]
[1747220671971,61.26,180.41,180.29,1.8646]
[1747220672174,61.26,180.41,180.3,61.46]
[1747220673175,61.2,180.4,180.3,61.46]
[1747220674075,4.36428373,180.42,180.3,61.46]
[1747220675076,61.1,180.41,180.3,61.46]
[1747220675373,4.36428373,180.42,180.3,61.46]
[1747220675573,61.06,180.41,180.3,61.46]
[1747220681078,61.06,180.41,180.29,1.8646]
[1747220681278,61.06,180.41,180.3,122.44]
[1747220682378,4.36428373,180.43,180.3,122.44]
[1747220682678,63.85283056,180.42,180.3,122.44]
[1747220682882,62.8644,180.42,180.31,61.46]
[1747220683379,61.02,180.41,180.31,61.46]
[1747220683581,61.0,180.4,180.31,61.46]
[1747220683879,60.98,180.39,180.31,61.46]
[1747220684078,1.9044,180.42,180.31,61.46]
[1747220684279,60.96,180.41,180.31,61.46]
[1747220684479,60.94,180.4,180.31,61.46]
[1747220685283,1.9044,180.42,180.31,61.46]
[1747220685580,60.86,180.41,180.31,61.46]
[1747220687283,2.78985214,180.39,180.31,64.24985214]
[1747220691483,60.62,180.4,180.31,64.24985214]
[1747220691683,63.40985214,180.4,180.31,64.24985214]
[1747220693585,63.40985214,180.4,180.31,2.78985214]
[1747220693884,63.40985214,180.4,180.32,61.46]
[1747220694084,63.40985214,180.4,180.33,61.46]
[1747220695983,2.78985214,180.38,180.3,2.78985214]
[1747220696285,2.78985214,180.38,180.31,61.46]
[1747220697187,63.16985214,180.38,180.31,61.46]
[1747220697579,2.78985214,180.36,180.29,1.8646]
[1747220697786,2.78985214,180.36,180.3,60.34]
[1747220699288,60.26,180.37,180.3,63.12985214]
[1747220699486,60.26,180.37,180.3,2.78985214]
[1747220699788,60.26,180.37,180.31,60.34]
[1747220700893,2.78985214,180.38,180.31,60.34]
[1747220701085,62.92985214,180.38,180.31,60.34]
[1747220702592,2.78985214,180.38,180.31,60.34]
[1747220702987,62.90985214,180.38,180.31,60.34]
[1747220703593,2.78985214,180.38,180.31,60.34]
[1747220703793,62.88985214,180.38,180.31,60.34]
[1747220704890,2.78985214,180.36,180.29,1.8646]
[1747220705095,2.78985214,180.36,180.3,60.34]
[1747220706798,2.78985214,180.36,180.29,1.8646]
[1747220706999,2.78985214,180.36,180.31,60.34]
[1747220708800,62.70985214,180.38,180.31,60.34]
[1747220709098,2.78985214,180.38,180.31,60.34]
[1747220711505,2.78985214,180.38,180.3,2.78985214]
[1747220711695,2.78985214,180.38,180.31,60.34]
[1747220714401,1.8474,180.39,180.32,2.78985214]
[1747220714795,1.8474,180.39,180.33,60.34]
[1747220716802,2.78985214,180.38,180.33,60.34]
[1747220718204,61.5274,180.39,180.33,60.34]
[1747220718405,64.31725214,180.39,180.33,60.34]
[1747220718806,64.31725214,180.39,180.32,2.78985214]
[1747220719103,64.31725214,180.39,180.33,60.34]
[1747220722500,59.52,180.38,180.33,60.34]
[1747220726313,2.78985214,180.35,180.33,60.34]
[1747220726612,2.78985214,180.35,180.29,60.34]
[1747220727714,4.63725214,180.39,180.31,2.78985214]
[1747220727913,64.05725214,180.39,180.31,2.78985214]
[1747220731314,1.8474,180.39,180.31,2.78985214]
[1747220732317,62.02985214,180.4,180.31,2.78985214]
[1747220732318,4.69425214,180.42,180.33,2.78985214]
[1747220732513,4.69425214,180.42,180.34,59.4]
[1747220732514,63.93425214,180.42,180.34,59.4]
[1747220732717,62.02985214,180.42,180.33,2.78985214]
[1747220732915,62.02985214,180.42,180.34,59.4]
[1747220733219,62.04985214,180.42,180.35,59.4]
[1747220733615,62.04985214,180.42,180.35,52.46581512]
[1747220734322,2.78985214,180.4,180.35,52.46581512]
[1747220735823,2.78985214,180.36,180.35,52.46581512]
[1747220736024,2.78985214,180.36,180.31,59.4]
[1747220740031,62.00985214,180.38,180.31,59.4]
[1747220743335,2.78985214,180.34,180.31,59.4]
[1747220745937,59.22,180.35,180.31,59.4]
[1747220746132,2.78985214,180.36,180.31,59.4]
[1747220746436,62.00985214,180.36,180.31,59.4]
[1747220747634,2.78985214,180.36,180.31,59.4]
[1747220747835,62.00985214,180.36,180.31,59.4]
[1747220748035,2.78985214,180.36,180.31,59.4]
[1747220748237,62.00985214,180.36,180.31,59.4]
[1747220749533,2.78985214,180.34,180.31,59.4]
[1747220750335,2.78985214,180.36,180.31,59.4]
[1747220750736,62.00985214,180.36,180.31,59.4]
[1747220751240,59.22,180.36,180.31,59.4]
[1747220751439,1.9161,180.38,180.31,59.4]
[1747220752040,59.22,180.37,180.31,59.4]
[1747220752539,59.22,180.36,180.31,59.4]
[1747220753140,1.9161,180.38,180.31,59.4]
[1747220753339,59.22,180.37,180.31,59.4]
[1747220753742,1.9161,180.38,180.31,59.4]
[1747220753940,59.22,180.37,180.31,59.4]
[1747220754142,1.9161,180.38,180.31,59.4]
[1747220754343,59.22,180.37,180.31,59.4]
[1747220754542,1.9161,180.38,180.31,59.4]
[1747220754743,59.22,180.37,180.31,59.4]
[1747220756343,1.9161,180.38,180.31,59.4]
[1747220756543,1.8286,180.39,180.31,59.4]
[1747220756846,59.22,180.38,180.31,59.4]
[1747220757946,6.18968993,180.39,180.31,59.4]
[1747220758147,59.22,180.38,180.31,59.4]
[1747220758443,60.20865962,180.38,180.31,59.4]
[1747220758645,59.22,180.38,180.31,59.4]
[1747220760145,59.22,180.37,180.31,59.4]
[1747220760346,6.18968993,180.39,180.31,59.4]
[1747220760545,1.8286,180.39,180.31,59.4]
[1747220760844,61.0486,180.39,180.31,59.4]
[1747220761146,61.0486,180.39,180.32,59.22]
[1747220761645,1.8286,180.39,180.32,59.22]
[1747220764548,1.8286,180.39,180.33,59.22]
[1747220766655,59.22,180.38,180.33,59.22]
[1747220767353,1.8286,180.39,180.33,59.22]
[1747220767548,61.0486,180.39,180.33,59.22]
[1747220771858,61.0486,180.39,180.27,1.7803]
[1747220772059,61.0486,180.39,180.28,118.42]
[1747220772858,1.8286,180.39,180.28,118.42]
[1747220773061,59.2,180.38,180.28,118.42]
[1747220778264,1.8286,180.39,180.28,118.42]
[1747220778464,61.0286,180.39,180.28,118.42]
[1747220782671,4.36108993,180.42,180.29,59.2]
[1747220782867,63.56108993,180.42,180.29,59.3029]
[1747220783462,4.36108993,180.42,180.29,59.3029]
[1747220783667,3.7133,180.44,180.3,4.36108993]
[1747220783869,0.9884759,180.43,180.3,4.36108993]
[1747220784264,59.2,180.45,180.33,4.36108993]
[1747220784465,0.9884759,180.44,180.34,3.6376]
[1747220784664,59.2,180.45,180.34,3.6376]
[1747220785067,199.70398461,180.48,180.34,3.6376]
[1747220785267,59.18,180.47,180.35,118.4]
[1747220785657,0.98832095,180.46,180.35,118.4]
[1747220786367,0.98832095,180.46,180.34,3.6376]
[1747220786563,0.98832095,180.46,180.35,118.38]
[1747220788268,59.18,180.45,180.35,118.38]
[1747220790570,4.36108993,180.48,180.35,118.38]
[1747220790770,59.16,180.46,180.35,118.38]
[1747220791974,4.36108993,180.45,180.34,3.6376]
[1747220792174,6.16598993,180.45,180.35,59.16]
[1747220792372,59.16,180.44,180.35,59.16]
[1747220792568,6.16598993,180.45,180.35,59.16]
[1747220793077,59.16,180.44,180.35,59.16]
[1747220793275,6.16598993,180.45,180.35,59.16]
[1747220793479,59.16,180.44,180.35,59.16]
[1747220796279,59.16,180.43,180.35,59.16]
[1747220797379,4.36108993,180.42,180.35,59.16]
[1747220797776,59.16,180.41,180.35,59.16]
[1747220798683,59.16,180.4,180.35,59.16]
[1747220800083,4.36108993,180.43,180.35,59.16]
[1747220800279,59.16,180.42,180.35,59.16]
[1747220800787,4.36108993,180.43,180.35,59.16]
[1747220801086,3.6964,180.44,180.35,59.16]
[1747220801282,59.16,180.43,180.35,59.16]
[1747220801482,59.16,180.42,180.35,59.16]
[1747220803187,59.16,180.43,180.35,59.16]
[1747220803382,1.8049,180.45,180.35,59.16]
[1747220803583,59.16,180.44,180.36,1.7958]
[1747220803782,59.16,180.44,180.36,3.6309]
[1747220804486,4.36108993,180.48,180.37,59.16]
[1747220804987,59.14,180.47,180.37,59.16]
[1747220808392,59.14,180.48,180.37,59.16]
[1747220808591,59.14,180.48,180.37,479.1406]
[1747220808786,59.14,180.49,180.37,479.1406]
[1747220808994,1.7744,180.5,180.38,118.3]
[1747220809192,60.9144,180.5,180.38,118.3]
[1747220809491,60.9144,180.5,180.39,118.3]
[1747220809692,59.14,180.49,180.39,118.3]
[1747220811892,1.7744,180.5,180.39,118.3]
[1747220812089,4.36108993,180.53,180.39,122.66108993]
[1747220812290,59.12,180.52,180.39,122.66108993]
[1747220812492,62.8209,180.55,180.39,122.66108993]
[1747220812794,62.8209,180.55,180.4,118.28]
[1747220812795,60.10784227,180.54,180.4,118.28]
[1747220812985,59.12,180.54,180.4,118.28]
[1747220814195,59.12,180.54,180.42,4.36108993]
[1747220814397,59.12,180.54,180.43,1.8259]
[1747220818796,3.6609,180.55,180.43,1.8259]
[1747220819096,59.1,180.54,180.43,1.8259]
[1747220819396,3.6609,180.55,180.43,1.8259]
[1747220819599,59.1,180.54,180.43,1.8259]
[1747220821199,3.6609,180.55,180.43,1.8259]
[1747220821498,60.8922,180.55,180.45,4.36108993]
[1747220821699,60.8922,180.55,180.46,118.2]
[1747220822391,60.8922,180.55,180.46,59.1]
[1747220834110,0.98772754,180.54,180.46,59.1]
[1747220834708,5.34881747,180.54,180.38,7.21892612]
[1747220834901,4.36108993,180.51,180.42,59.08]
[1747220835105,62.7054,180.5,180.42,59.08]
[1747220835505,1.8704,180.49,180.42,59.08]
[1747220837210,59.06,180.48,180.42,59.08]
[1747220839910,59.06,180.48,180.37,544.37858993]
[1747220839911,59.06,180.48,180.38,59.08]
[1747220840111,1.8704,180.49,180.38,59.08]
[1747220840312,59.06,180.48,180.38,59.08]
[1747220840508,1.8704,180.49,180.38,63.44108993]
[1747220840708,1.8704,180.49,180.41,4.36108993]
[1747220846014,1.7355,180.55,180.44,4.36108993]
[1747220846314,60.7955,180.55,180.45,118.16]
[1747220846612,60.7955,180.55,180.45,119.9697]
[1747220849115,60.7955,180.55,180.45,118.16]
[1747220851714,1.7355,180.55,180.45,118.16]
[1747220852017,60.7755,180.55,180.45,118.16]
[1747220853015,364.0,180.64,180.47,4.36108993]
[1747220853219,4.36108993,180.62,180.48,1.7289]
[1747220853415,59.04,180.61,180.48,1.7289]
[1747220854020,4.36108993,180.62,180.48,1.7289]
[1747220854216,59.02,180.61,180.48,1.7289]
[1747220859815,59.02,180.61,180.45,63.46108993]
[1747220860019,4.36108993,180.59,180.47,59.0]
[1747220860923,0.98749984,180.58,180.47,59.0]
[1747220861115,0.98749984,180.58,180.45,63.46108993]
[1747220861318,5.3919,180.57,180.45,4.36108993]
[1747220861519,59.0,180.56,180.46,59.02]
[1747220863424,59.0,180.56,180.46,118.02]
[1747220864823,5.3919,180.57,180.46,118.02]
[1747220865123,59.0,180.56,180.46,118.02]
[1747220865622,3.5709,180.57,180.46,118.02]
[1747220866123,1.8309,180.57,180.48,4.36108993]
[1747220866723,1.8309,180.57,180.49,1.8318]
[1747220867524,58.98,180.6,180.49,1.8318]
[1747220868023,58.98,180.61,180.49,1.8318]
[1747220868222,3.6471,180.62,180.51,4.36108993]
[1747220868420,62.6271,180.62,180.52,118.0]
[1747220868617,1.8787,180.62,180.52,118.0]
[1747220869422,1.8787,180.62,180.54,4.36108993]
[1747220870224,58.98,180.64,180.54,4.36108993]
[1747220870426,1.8992,180.67,180.54,4.36108993]
[1747220870624,58.98,180.66,180.54,4.36108993]
[1747220870824,1.8992,180.67,180.57,4.36108993]
[1747220871023,60.8592,180.67,180.58,59.02]
[1747220871225,1.8992,180.67,180.58,59.02]
[1747220871426,1.8992,180.67,180.58,60.8013]
[1747220871723,58.96,180.69,180.58,60.8013]
[1747220871913,0.98699387,180.68,180.58,60.8013]
[1747220872417,58.96,180.69,180.58,60.8013]
[1747220873324,0.98698843,180.68,180.58,60.8013]
[1747220873626,58.96,180.69,180.58,60.8013]
[1747220874224,0.98699017,180.68,180.58,60.8013]
[1747220875323,58.96,180.69,180.58,60.8013]
[1747220875627,0.98699262,180.68,180.58,60.8013]
[1747220878128,58.96,180.69,180.58,60.8013]
[1747220880027,0.98698891,180.68,180.58,60.8013]
[1747220880530,0.98698891,180.68,180.58,59.02]
[1747220880828,1.8039,180.67,180.58,59.02]
[1747220881227,1.9068,180.66,180.58,59.02]
[1747220882719,3.6808,180.66,180.58,59.02]
[1747220885929,0.98717446,180.65,180.58,59.02]
[1747220886131,58.92,180.64,180.58,59.02]
[1747220893132,58.9,180.63,180.58,59.02]
[1747220897525,3.6808,180.66,180.58,59.02]
[1747220897732,58.88,180.64,180.58,59.02]
[1747220899939,3.6808,180.66,180.58,59.02]
[1747220900236,59.86626261,180.65,180.58,59.02]
[1747220900436,58.88,180.65,180.58,59.02]
[1747220902234,3.6808,180.66,180.58,59.02]
[1747220902438,58.88,180.65,180.58,59.02]
[1747220904942,0.9859233,180.64,180.58,59.02]
[1747220907949,5.34701323,180.64,180.55,58.92]
[1747220908647,0.9859233,180.63,180.55,58.92]
[1747220909349,4.36108993,180.64,180.55,58.92]
[1747220909550,0.9857043,180.62,180.55,58.92]
[1747220909850,4.36108993,180.64,180.55,58.92]
[1747220910045,0.98574966,180.63,180.55,58.92]
[1747220911253,4.36108993,180.64,180.55,58.92]
[1747220911550,0.9855658,180.63,180.55,58.92]
[1747220915757,58.84,180.63,180.55,58.92]
[1747220924363,8.04188993,180.66,180.55,58.92]
[1747220924663,58.8,180.65,180.55,58.92]
[1747220924863,59.78541383,180.65,180.55,58.92]
[1747220925158,0.98541383,180.64,180.55,58.92]
[1747220928465,58.8,180.65,180.55,58.92]
[1747220928664,0.98548324,180.64,180.55,58.92]
[1747220929063,58.8,180.63,180.55,58.92]
[1747220929263,61.58275142,180.63,180.55,61.70275142]
[1747220931666,58.8,180.63,180.55,61.70275142]
[1747220931868,61.58275142,180.63,180.55,61.70275142]
[1747220938469,2.78275142,180.61,180.55,58.92]
[1747220938769,61.58275142,180.63,180.55,61.70275142]
[1747220939860,61.58278838,180.63,180.55,61.70278838]
[1747220943672,58.8,180.63,180.55,61.70278838]
[1747220944574,61.58292055,180.63,180.55,58.92]
[1747220946174,2.78292055,180.63,180.55,58.92]
[1747220946373,61.52292055,180.63,180.55,58.92]
[1747220946876,2.78292055,180.61,180.55,58.92]
[1747220948074,58.74,180.63,180.55,58.92]
[1747220948278,2.78292055,180.6,180.55,58.92]
[1747220952480,2.78292055,180.58,180.55,58.92]
[1747220952674,61.50292055,180.58,180.51,60.5298]
[1747220952879,2.78292055,180.56,180.51,60.5298]
[1747220954280,61.50292055,180.58,180.51,60.5298]
[1747220954978,2.78292055,180.59,180.51,63.31272055]
[1747220955278,58.72,180.6,180.55,2.78292055]
[1747220955869,2.78292055,180.62,180.55,2.78292055]
[1747220956077,58.72,180.62,180.56,58.74]
[1747220956278,4.59862055,180.66,180.59,2.78292055]
[1747220956476,2.78292055,180.66,180.59,2.78292055]
[1747220957379,58.72,180.67,180.57,3.5901]
[1747220961281,60.6103,180.67,180.57,3.5901]
[1747220961782,0.98533189,180.66,180.57,3.5901]
[1747220961982,0.98533189,180.66,180.57,1.7677]
[1747220962183,60.6103,180.67,180.57,1.7677]
[1747220963087,0.9853319,180.66,180.57,1.7677]
[1747220965389,60.6103,180.67,180.57,1.7677]
[1747220965592,1.8903,180.67,180.57,1.7677]
[1747220965889,58.68,180.66,180.57,1.7677]
[1747220966184,1.8903,180.67,180.58,58.68]
[1747220966389,58.68,180.69,180.59,4.34600876]
[1747220966687,58.68,180.7,180.59,4.34600876]
[1747220967187,1.9134,180.73,180.59,4.34600876]
[1747220967382,0.98572895,180.72,180.59,4.34600876]
[1747220967590,59.66572895,180.72,180.59,4.34600876]
[1747220967790,58.68,180.72,180.59,4.34600876]
[1747220978495,1.9134,180.73,180.59,4.34600876]
[1747220978695,58.62,180.72,180.59,4.34600876]
[1747220980696,1.9134,180.73,180.59,4.34600876]
[1747220980996,58.62,180.72,180.59,4.34600876]
[1747220981198,58.62,180.72,180.62,4.34600876]
[1747220981494,58.62,180.72,180.63,117.26]
[1747220982399,1.9134,180.73,180.63,117.26]
[1747220982595,60.5134,180.73,180.63,117.26]
[1747220982791,1.9134,180.73,180.63,117.26]
[1747220983496,1.9134,180.73,180.63,119.0316]
[1747220983894,1.9134,180.73,180.65,4.34600876]
[1747220989599,58.58,180.72,180.63,1.7716]
[1747220989803,62.3844,180.72,180.64,58.62]
[1747220990706,0.9633618,180.82,180.65,4.34600876]
[1747220990904,1.8765,180.77,180.65,4.34600876]
[1747220991202,1.8765,180.77,180.65,6.10520876]
[1747220995006,1.8765,180.77,180.68,4.34600876]
[1747220995207,1.8765,180.77,180.69,58.62]
[1747220997910,3.7649,180.77,180.69,58.62]
[1747221003015,62.2849,180.77,180.69,58.62]
[1747221004417,4.34600876,180.76,180.62,4.34600876]
[1747221004619,4.34600876,180.73,180.63,58.52]
[1747221004819,60.3307,180.72,180.63,58.52]
[1747221005013,118.8507,180.72,180.63,58.52]
[1747221006017,0.98388431,180.71,180.63,58.52]
[1747221006219,4.34600876,180.7,180.63,58.52]
[1747221006512,7.95470876,180.7,180.56,4.34600876]
[1747221006718,7.95470876,180.7,180.57,58.52]
[1747221006915,0.98349981,180.69,180.57,58.52]
[1747221013624,7.95470876,180.7,180.57,58.52]
[1747221013817,0.98286699,180.68,180.57,58.52]